bitfinex/quotes_SOLUSD_20250207
["timestamp","ask_amount","ask_price","bid_price","bid_amount"]
[1738921868112,18.63223603,197.05,196.98,18.63223603]
[1738921868414,18.63223603,197.04,196.97,155.83223603]
[1738921868626,23.70743603,197.04,196.97,155.83223603]
[1738921868922,23.70743603,197.04,196.98,18.63223603]
[1738921868923,5.0752,197.04,196.98,18.63223603]
[1738921869396,5.0752,197.04,196.99,18.63223603]
[1738921869595,5.0748,197.05,196.99,18.63223603]
[1738921870114,5.0748,197.05,197.0,18.63223603]
[1738921870618,18.69523603,197.08,197.01,18.63223603]
[1738921870918,18.69523603,197.08,197.04,18.63223603]
[1738921870919,0.063,197.08,197.04,18.63223603]
[1738921871288,5.137,197.08,197.03,18.63223603]
[1738921871799,0.063,197.08,197.03,18.63223603]
[1738921874421,0.063,197.08,197.07,38.63223603]
[1738921874607,0.063,197.08,197.07,190.00489323]
[1738921874794,0.063,197.08,197.07,194.31838456]
[1738921875297,0.063,197.08,197.07,180.90653603]
[1738921876305,0.063,197.08,197.07,38.63223603]
[1738921877003,0.063,197.08,197.06,18.63223603]
[1738921877296,0.063,197.08,197.05,18.63223603]
[1738921878220,0.063,197.08,197.06,18.63223603]
[1738921878422,0.063,197.08,197.07,18.63223603]
[1738921879503,0.063,197.08,197.07,38.63223603]
[1738921880622,0.063,197.08,197.07,49.67236287]
[1738921881014,0.063,197.08,197.07,49.70236287]
[1738921881317,0.063,197.08,197.07,20.03]
[1738921881536,0.063,197.08,197.07,49.70236287]
[1738921882319,0.063,197.08,197.07,54.77666287]
[1738921882625,0.063,197.08,197.07,172.73758751]
[1738921882828,0.063,197.08,197.07,171.97666287]
[1738921886403,0.063,197.08,197.07,166.90236287]
[1738921886608,0.063,197.08,197.07,29.70236287]
[1738921887031,0.063,197.08,197.07,0.03]
[1738921887910,34.80936287,197.08,197.07,0.03]
[1738921888727,5.137,197.08,197.07,0.03]
[1738921889023,0.063,197.08,197.07,0.03]
[1738921892732,48.3467014,197.08,197.07,0.03]
[1738921893242,48.3467014,197.08,197.0,29.67236287]
[1738921893243,0.37647,197.07,196.97,29.67236287]
[1738921893412,29.67236287,197.03,196.96,29.67236287]
[1738921893608,29.92334287,197.07,197.0,29.67236287]
[1738921894030,29.67236287,197.06,196.99,29.67236287]
[1738921894244,29.67236287,197.06,196.94,142.2775]
[1738921894245,29.67236287,197.04,196.97,29.67236287]
[1738921894617,29.67236287,197.03,196.97,20.0]
[1738921894819,5.0756,197.02,196.97,49.67236287]
[1738921895043,5.0756,197.02,196.96,29.67236287]
[1738921895236,34.74796287,197.02,196.95,29.67236287]
[1738921895926,29.67236287,197.0,196.94,137.2]
[1738921896238,29.67236287,196.99,196.93,29.67236287]
[1738921897236,5.0766,196.98,196.93,29.67236287]
[1738921898932,0.25098,196.99,196.93,29.67236287]
[1738921899632,43.3351914,196.99,196.92,29.67236287]
[1738921899810,29.92334287,196.97,196.91,81.6]
[1738921900016,29.92334287,196.97,196.9,29.67236287]
[1738921900437,0.25098,196.97,196.91,29.67236287]
[1738921900816,0.25098,196.97,196.92,29.67236287]
[1738921901235,5.0771,196.96,196.92,29.67236287]
[1738921902730,5.0761,197.0,196.94,18.57573576]
[1738921903217,0.25098,196.99,196.93,18.57573576]
[1738921903411,0.25098,196.97,196.91,18.57573576]
[1738921904026,0.25098,196.97,196.92,18.57573576]
[1738921904522,18.57573576,197.0,196.93,18.57573576]
[1738921904721,5.0766,196.99,196.93,18.57573576]
[1738921905241,5.0766,196.99,196.94,18.57573576]
[1738921905436,0.25098,197.0,196.97,18.57573576]
[1738921906140,5.32708,197.0,196.97,18.57573576]
[1738921906633,6.7301,197.06,196.99,18.57573576]
[1738921906841,0.25098,197.05,197.01,18.57573576]
[1738921907225,6.7301,197.06,197.02,18.57573576]
[1738921907425,6.7301,197.06,197.03,18.57573576]
[1738921907646,6.7301,197.06,197.02,18.57573576]
[1738921909530,6.7301,197.06,197.01,18.57573576]
[1738921914053,5.1373,197.08,197.03,18.57573576]
[1738921914259,0.063,197.08,197.03,18.57573576]
[1738921914455,0.063,197.08,197.05,18.57573576]
[1738921914662,0.063,197.08,197.07,18.57573576]
[1738921916327,0.063,197.08,197.06,18.57573576]
[1738921916526,0.063,197.08,197.05,18.57573576]
[1738921916928,0.063,197.07,197.02,18.57573576]
[1738921917838,0.063,197.07,197.03,18.57573576]
[1738921918034,0.063,197.07,197.04,18.57573576]
[1738921920429,0.063,197.07,197.05,18.57573576]
[1738921920628,0.063,197.07,197.06,18.57573576]
[1738921920835,0.063,197.07,197.06,155.77573576]
[1738921921351,0.063,197.07,197.06,160.85023576]
[1738921922257,0.063,197.07,197.06,168.66663576]
[1738921922448,0.063,197.08,197.06,168.91761576]
[1738921922658,20.24143576,197.23,197.1,20.0]
[1738921922846,5.0707,197.21,197.16,18.57573576]
[1738921923350,5.0712,197.19,197.13,18.57573576]
[1738921923547,5.0712,197.19,197.14,18.57573576]
[1738921924041,5.0707,197.21,197.16,18.57573576]
[1738921924262,20.24143576,197.23,197.16,18.57573576]
[1738921924556,18.82671576,197.24,197.17,18.57573576]
[1738921924860,5.0702,197.23,197.18,18.57573576]
[1738921925071,5.0702,197.23,197.18,18.52738454]
[1738921925855,23.59758454,197.23,197.16,18.52738454]
[1738921926047,18.52738454,197.21,197.14,18.52738454]
[1738921926864,18.90385454,197.22,197.15,18.52738454]
[1738921927051,5.0707,197.21,197.15,18.52738454]
[1738921928073,18.52738454,197.22,197.15,18.52738454]
[1738921928271,20.22016021,197.27,197.17,18.52738454]
[1738921928272,18.52738454,197.24,197.17,18.52738454]
[1738921928449,18.52805107,197.24,197.17,18.52805107]
[1738921928638,18.52805107,197.24,197.15,137.2]
[1738921928639,18.52805107,197.23,197.16,18.52805107]
[1738921929155,5.0704,197.22,197.16,18.52805107]
[1738921929564,0.063,197.21,197.16,18.52805107]
[1738921929756,0.063,197.21,197.15,155.72805107]
[1738921929980,18.52805107,197.2,197.13,18.52805107]
[1738921930284,18.52805107,197.17,197.1,18.52805107]
[1738921931396,23.60005107,197.16,197.09,18.52805107]
[1738921931597,18.52805107,197.15,197.08,18.52805107]
[1738921932674,5.0725,197.14,197.09,18.52805107]
[1738921932885,5.0725,197.14,197.1,18.52805107]
[1738921933788,5.0717,197.17,197.08,5.83482894]
[1738921933969,5.0717,197.17,197.13,18.52805107]
[1738921934584,5.0715,197.18,197.14,18.52805107]
[1738921935671,5.0715,197.18,197.15,18.52805107]
[1738921935874,5.51017,197.21,197.15,18.52805107]
[1738921936079,5.51017,197.21,197.14,18.52805107]
[1738921936385,24.03822107,197.21,197.14,18.52805107]
[1738921936784,18.52805107,197.2,197.13,18.52805107]
[1738921937085,5.0712,197.19,197.13,18.52805107]
[1738921937283,23.59925107,197.19,197.12,18.52805107]
[1738921937472,23.61009811,197.19,197.11,38.53889811]
[1738921937669,18.53889811,197.18,197.11,38.53889811]
[1738921938089,18.53889811,197.17,197.1,18.53889811]
[1738921938274,18.53889811,197.16,197.09,18.53889811]
[1738921938474,18.53889811,197.15,197.08,155.73889811]
[1738921938985,5.0725,197.14,197.08,155.73889811]
[1738921941187,5.0725,197.14,197.09,18.53889811]
[1738921941597,6.7348,197.16,197.1,18.53889811]
[1738921941805,6.7348,197.16,197.09,18.53889811]
[1738921941806,25.27369811,197.16,197.09,18.53889811]
[1738921941976,18.53889811,197.14,197.07,18.53889811]
[1738921942183,18.91536811,197.15,197.08,18.53889811]
[1738921942379,5.0725,197.14,197.09,18.53889811]
[1738921942780,5.0725,197.14,197.1,18.53889811]
[1738921943287,5.0725,197.14,197.1,18.54182267]
[1738921943476,14.3427,197.16,197.1,18.54182267]
[1738921943679,5.0722,197.15,197.1,18.54182267]
[1738921944395,5.0722,197.15,197.11,18.54182267]
[1738921945774,23.61402267,197.15,197.08,18.54182267]
[1738921947598,5.0722,197.15,197.1,18.54182267]
[1738921949800,5.0722,197.15,197.09,18.54182267]
[1738921950802,0.37647,197.14,197.08,155.74182267]
[1738921951101,18.54182267,197.11,197.03,18.54182267]
[1738921951298,18.54182267,197.11,197.03,155.74182267]
[1738921952099,18.91829267,197.12,197.05,18.54182267]
[1738921952305,6.2564,197.14,197.08,18.54182267]
[1738921952478,24.79822267,197.14,197.06,18.54182267]
[1738921952816,24.79822267,197.14,197.07,18.54182267]
[1738921952982,5.0727,197.13,197.07,18.54182267]
[1738921953379,0.37647,197.12,197.08,0.03]
[1738921953584,18.91829267,197.12,197.08,0.03]
[1738921954223,18.54182267,197.11,197.08,0.03]
[1738921954929,0.37647,197.12,197.08,0.03]
[1738921954930,18.54182267,197.1,197.08,0.03]
[1738921955106,23.61532267,197.1,197.08,0.03]
[1738921955429,18.54182267,197.09,197.08,0.03]
[1738921955721,23.61532267,197.1,197.08,0.03]
[1738921962730,18.54182267,197.09,197.08,0.03]
[1738921964237,23.61562267,197.09,197.08,0.03]
[1738921964407,5.0738,197.09,197.08,0.03]
[1738921966435,23.61562267,197.09,197.08,0.03]
[1738921967214,5.0738,197.09,197.08,0.03]
[1738921967406,18.54182267,197.14,197.08,18.57182267]
[1738921967810,18.54182267,197.14,197.08,0.03]
[1738921968005,18.54182267,197.11,197.08,0.03]
[1738921969345,23.61532267,197.1,197.08,0.03]
[1738921972539,18.54182267,197.09,197.08,0.03]
[1738921972725,32.3301412,197.09,197.08,0.03]
[1738921972927,37.4039412,197.09,197.08,0.03]
[1738921973127,0.37647,197.07,196.97,155.74182267]
[1738921973327,18.54182267,197.05,196.98,18.54182267]
[1738921973537,18.54182267,197.06,196.99,18.54182267]
[1738921973843,18.54182267,197.04,196.97,155.74182267]
[1738921974935,18.54182267,197.05,196.98,18.54182267]
[1738921975447,18.54182267,197.06,196.99,18.54182267]
[1738921976545,5.0748,197.05,196.99,18.54182267]
[1738921977220,5.0748,197.05,196.97,137.2]
[1738921977221,18.54182267,197.03,196.97,137.2]
[1738921977427,18.54182267,197.03,196.96,163.99562267]
[1738921978127,18.54182267,197.02,196.96,145.4538]
[1738921978544,23.61762267,197.01,196.96,137.2]
[1738921978861,18.54182267,197.0,196.99,0.03]
[1738921980326,5.0758,197.01,196.99,0.03]
[1738921980940,18.54182267,197.0,196.99,0.03]
[1738921981230,32.3301412,197.0,196.99,0.03]
[1738921982334,0.37647,196.99,196.93,0.03]
[1738921982650,18.54182267,196.95,196.93,0.03]
[1738921983035,2.01397,196.99,196.93,0.03]
[1738921983036,18.54182267,196.94,196.93,0.03]
[1738921983254,32.3301412,196.94,196.93,0.03]
[1738921983834,18.79280267,196.94,196.93,0.03]
[1738921984041,18.54182267,196.95,196.93,0.03]
[1738921984648,18.54182267,196.94,196.93,0.03]
[1738921985349,5.0774,196.95,196.93,0.03]
[1738921986041,5.0774,196.95,196.93,137.23]
[1738921986655,18.54182267,196.98,196.93,137.23]
[1738921986949,23.61842267,196.98,196.93,137.23]
[1738921987151,18.54182267,196.96,196.93,137.23]
[1738921988356,5.0774,196.95,196.93,137.23]
[1738921989282,5.0774,196.95,196.93,0.03]
[1738921989283,23.61922267,196.95,196.93,0.03]
[1738921989752,5.0774,196.95,196.93,0.03]
[1738921989954,23.61922267,196.95,196.93,0.03]
[1738921990158,5.0774,196.95,196.93,0.03]
[1738921991554,23.61922267,196.95,196.93,0.03]
[1738921991752,18.91829267,196.94,196.92,0.03]
[1738921991937,38.91829267,196.93,196.92,0.03]
[1738921993054,43.99619267,196.93,196.92,0.03]
[1738921993551,0.37647,196.9,196.87,0.03]
[1738921993756,33.78831853,196.86,196.85,0.03]
[1738921993939,52.3301412,196.86,196.85,0.03]
[1738921994952,57.4098412,196.86,196.85,0.03]
[1738921995760,0.37647,196.85,196.84,0.03]
[1738921996060,18.91829267,196.85,196.84,0.03]
[1738921996260,32.3301412,196.85,196.84,0.0001]
[1738921996641,18.91829267,196.85,196.84,0.0001]
[1738921997248,23.99829267,196.85,196.84,0.0001]
[1738921998264,23.62182267,196.85,196.84,0.0001]
[1738921998558,5.08,196.85,196.84,0.0001]
[1738921998762,5.0792,196.88,196.84,0.0001]
[1738921999989,18.54182267,196.95,196.87,46.18822267]
[1738922000163,5.0763,196.99,196.94,18.54182267]
[1738922000346,5.139,197.01,196.98,18.54182267]
[1738922000659,0.063,197.01,196.98,155.74182267]
[1738922000972,5.139,197.01,196.98,137.2]
[1738922001264,0.063,197.01,196.98,137.2]
[1738922001467,0.063,197.01,197.0,18.54182267]
[1738922002456,0.063,197.01,197.0,155.74182267]
[1738922002674,0.063,197.01,197.0,174.28364534]
[1738922002961,0.063,197.01,197.0,181.30599127]
[1738922004476,0.063,197.01,197.0,162.7641686]
[1738922007580,0.063,197.01,197.0,181.30599127]
[1738922008360,0.063,197.01,197.0,155.74182267]
[1738922008585,0.063,197.01,197.0,137.2]
[1738922009278,0.063,197.01,197.0,155.74182267]
[1738922011180,0.063,197.01,197.0,137.2]
[1738922014979,0.063,197.01,196.98,18.54182267]
[1738922016664,0.063,197.01,196.99,18.54182267]
[1738922018583,0.063,197.01,197.0,18.54182267]
[1738922018967,0.063,197.01,197.0,155.74182267]
[1738922021782,0.063,197.01,197.0,160.81792267]
[1738922021969,0.063,197.01,197.0,155.74182267]
[1738922022488,0.063,197.01,197.0,137.2]
[1738922022793,0.063,197.01,197.0,155.74182267]
[1738922023579,0.063,197.01,197.0,137.2]
[1738922024093,0.063,197.01,196.96,81.6]
[1738922024094,0.063,197.01,196.96,237.34182267]
[1738922025511,5.1388,197.01,196.96,237.34182267]
[1738922025875,5.1388,197.01,196.96,218.8]
[1738922026175,18.54182267,197.0,196.94,137.2]
[1738922026477,18.54182267,197.0,196.93,155.74182267]
[1738922026982,18.91829267,196.99,196.93,137.2]
[1738922027184,18.54182267,196.98,196.93,137.2]
[1738922027384,5.0769,196.97,196.91,155.74182267]
[1738922027786,5.0769,196.97,196.92,18.54182267]
[1738922027975,5.0769,196.97,196.93,18.54182267]
[1738922028975,5.0766,196.98,196.93,18.54182267]
[1738922029701,5.0766,196.98,196.94,18.54182267]
[1738922030785,5.0766,196.98,196.93,18.54182267]
[1738922030996,5.0766,196.98,196.92,18.54182267]
[1738922031479,5.0766,196.98,196.93,18.54182267]
[1738922032190,5.0766,196.98,196.94,18.54182267]
[1738922033083,5.45257,197.0,196.94,18.54182267]
[1738922033974,18.14287,197.0,196.93,18.54182267]
[1738922034309,18.91829267,196.98,196.91,18.54182267]
[1738922034476,18.54182267,196.97,196.9,155.74182267]
[1738922034981,18.91829267,196.98,196.91,18.54182267]
[1738922035594,5.0769,196.97,196.91,18.54182267]
[1738922036479,5.0769,196.97,196.92,18.54182267]
[1738922037506,5.0769,196.97,196.93,18.54182267]
[1738922040236,12.6921,196.98,196.94,18.54182267]
[1738922040396,5.0761,197.0,196.96,18.54182267]
[1738922041609,5.0761,197.0,196.95,18.54182267]
[1738922041987,13.78831853,196.99,196.94,155.74182267]
[1738922042213,32.3301412,196.99,196.94,137.2]
[1738922043102,13.78831853,196.99,196.94,137.2]
[1738922044034,5.0766,196.98,196.95,18.54182267]
[1738922044237,5.0766,196.98,196.96,18.54182267]
[1738922045220,12.6903,197.0,196.96,18.54182267]
[1738922045405,17.7664,197.0,196.95,18.54182267]
[1738922046519,13.78831853,196.99,196.93,18.54182267]
[1738922046725,18.91829267,196.97,196.9,237.34182267]
[1738922047740,5.0771,196.96,196.9,237.34182267]
[1738922049125,5.0771,196.96,196.91,18.54182267]
[1738922050129,18.91829267,196.95,196.9,218.8]
[1738922050428,18.54182267,196.93,196.9,81.6]
[1738922050633,0.37647,196.95,196.9,81.6]
[1738922050806,0.37647,196.95,196.9,100.14182267]
[1738922051231,19.279,196.96,196.91,18.54182267]
[1738922051616,6.5861,196.96,196.93,18.54182267]
[1738922051822,5.0771,196.96,196.95,18.54182267]
[1738922052205,12.7538,197.0,196.93,18.54182267]
[1738922052206,13.78831853,196.99,196.93,18.54182267]
[1738922054025,5.0766,196.98,196.93,18.54182267]
[1738922054328,5.0766,196.98,196.94,18.54182267]
[1738922054929,5.0766,196.98,196.96,18.54182267]
[1738922055426,5.0766,196.98,196.95,18.54182267]
[1738922055733,0.37647,196.97,196.93,18.54182267]
[1738922055928,0.37647,196.97,196.91,237.34182267]
[1738922056243,0.37647,196.97,196.91,218.8]
[1738922056244,5.0771,196.96,196.91,218.8]
[1738922056743,5.0771,196.96,196.91,237.34182267]
[1738922057940,5.0771,196.96,196.93,18.54182267]
[1738922058707,5.0771,196.96,196.93,11.88753833]
[1738922062331,5.0771,196.96,196.92,11.88753833]
[1738922063928,5.0771,196.96,196.91,230.68753833]
[1738922065041,11.95053833,196.98,196.91,11.88753833]
[1738922065330,7.91778971,197.1,196.99,2.0]
[1738922065532,7.91778971,197.1,197.09,11.88753833]
[1738922065915,15.88878364,197.1,197.09,11.88753833]
[1738922066117,15.88878364,197.1,197.05,11.88753833]
[1738922066320,15.88878364,197.1,197.05,149.08753833]
[1738922066638,15.88878364,197.1,197.06,18.54833524]
[1738922067136,15.88878364,197.1,197.08,18.54833524]
[1738922068531,5.0734,197.11,197.08,18.54833524]
[1738922069121,13.41184853,197.13,197.08,18.54833524]
[1738922069327,0.37647,197.12,197.08,18.54833524]
[1738922070250,5.0725,197.14,197.1,18.54833524]
[1738922070417,5.0722,197.16,197.12,18.54833524]
[1738922071226,0.063,197.18,197.15,18.54833524]
[1738922071428,5.1346,197.18,197.15,18.54833524]
[1738922071945,0.063,197.18,197.17,18.54833524]
[1738922072441,0.063,197.18,197.17,155.74833524]
[1738922077758,0.063,197.18,197.17,137.2]
[1738922079160,0.063,197.18,197.17,155.74833524]
[1738922079530,0.063,197.18,197.17,137.2]
[1738922080465,0.063,197.18,197.17,155.74833524]
[1738922082049,0.063,197.18,197.17,137.2]
[1738922084257,18.61133524,197.18,197.11,18.54833524]
[1738922084561,0.37647,197.17,197.11,155.74833524]
[1738922084862,0.37647,197.15,197.11,137.2]
[1738922085260,5.073,197.12,197.08,18.54833524]
[1738922085445,5.073,197.12,197.07,18.54833524]
[1738922085644,5.073,197.12,197.07,155.74833524]
[1738922086463,5.072,197.16,197.1,18.54833524]
[1738922086746,5.072,197.16,197.13,18.54833524]
[1738922087365,13.85131853,197.18,197.13,18.54833524]
[1738922087550,5.0717,197.17,197.12,18.54833524]
[1738922088456,13.85131853,197.18,197.12,18.54833524]
[1738922088457,5.1345,197.18,197.12,18.54833524]
[1738922089449,0.063,197.18,197.12,18.54833524]
[1738922089967,0.063,197.18,197.13,18.54833524]
[1738922090442,0.063,197.18,197.13,155.74833524]
[1738922092248,0.063,197.18,197.14,18.54833524]
[1738922093270,0.063,197.18,197.15,18.54833524]
[1738922093452,0.063,197.18,197.16,18.54833524]
[1738922095546,0.063,197.18,197.15,137.2]
[1738922099372,0.063,197.18,197.14,237.34833524]
[1738922100070,0.063,197.18,197.14,218.8]
[1738922100456,0.063,197.18,197.14,237.34833524]
[1738922102570,0.063,197.18,197.15,18.54833524]
[1738922102772,0.063,197.18,197.16,18.54833524]
[1738922104746,0.063,197.18,197.14,230.65956777]
[1738922104946,0.063,197.18,197.14,218.8]
[1738922105276,0.063,197.18,197.13,11.85956777]
[1738922106151,5.1345,197.18,197.13,11.85956777]
[1738922106549,5.1345,197.18,197.14,11.85956777]
[1738922107388,0.063,197.18,197.14,11.85956777]
[1738922109061,0.063,197.18,197.15,11.85956777]
[1738922110355,0.063,197.18,197.16,11.85956777]
[1738922111059,0.063,197.18,197.16,149.05956777]
[1738922111259,0.063,197.18,197.17,11.85956777]
[1738922113769,0.063,197.18,197.16,149.05956777]
[1738922114088,0.063,197.18,197.16,137.2]
[1738922114293,0.063,197.18,197.16,149.05956777]
[1738922114478,0.063,197.18,197.17,11.85956777]
[1738922115587,0.063,197.18,197.17,93.45956777]
[1738922117072,0.063,197.18,197.17,230.65956777]
[1738922117274,0.063,197.18,197.17,218.8]
[1738922119494,0.063,197.18,197.14,11.85956777]
[1738922120310,0.063,197.18,197.13,137.2]
[1738922120311,0.063,197.18,197.15,11.85956777]
[1738922120483,0.063,197.18,197.14,11.85956777]
[1738922122408,0.063,197.18,197.13,137.2]
[1738922122606,5.1345,197.18,197.13,137.2]
[1738922122900,5.1345,197.18,197.12,11.85956777]
[1738922124003,13.08253981,197.18,197.12,11.85956777]
[1738922125096,13.08253981,197.18,197.13,11.85956777]
[1738922125408,13.08253981,197.18,197.15,11.85956777]
[1738922125704,8.01103981,197.18,197.16,11.85956777]
[1738922126509,13.08253981,197.18,197.15,11.85956777]
[1738922127011,5.1345,197.18,197.15,11.85956777]
[1738922127486,0.063,197.18,197.15,11.85956777]
[1738922129215,0.063,197.18,197.13,11.85956777]
[1738922130111,12.29903777,197.18,197.11,149.05956777]
[1738922130343,12.29903777,197.18,197.1,81.6]
[1738922130344,12.23603777,197.16,197.08,11.85956777]
[1738922130633,12.23603777,197.16,197.08,149.05956777]
[1738922131430,5.0725,197.14,197.08,149.05956777]
[1738922131632,5.0725,197.14,197.09,11.85956777]
[1738922131942,5.0725,197.14,197.08,149.05956777]
[1738922132308,11.92256777,197.18,197.11,31.85956777]
[1738922132504,0.063,197.18,197.16,11.85956777]
[1738922132928,15.95178364,197.18,197.16,11.85956777]
[1738922133232,21.02338364,197.18,197.15,11.85956777]
[1738922133832,15.95178364,197.18,197.15,149.05956777]
[1738922134035,15.95178364,197.18,197.16,11.85956777]
[1738922134720,0.063,197.18,197.16,11.85956777]
[1738922135524,0.063,197.18,197.17,11.85956777]
[1738922136299,0.063,197.18,197.17,149.05956777]
[1738922136504,0.063,197.18,197.17,230.65956777]
[1738922139931,0.063,197.18,197.17,235.73126777]
[1738922141639,0.063,197.2,197.19,20.0]
[1738922141934,0.063,197.2,197.19,80.05820862]
[1738922142721,0.063,197.21,197.19,80.18369862]
[1738922142924,0.063,197.21,197.2,79.29783885]
[1738922143230,0.063,197.21,197.2,303.16873885]
[1738922144231,45.62295567,197.28,197.27,7.4169]
[1738922144410,62.24681917,197.3,197.28,2.0]
[1738922144612,0.063,197.34,197.32,2.12549]
[1738922144808,0.063,197.38,197.36,20.0]
[1738922145012,0.063,197.38,197.37,0.75979377]
[1738922145221,74.39759667,197.47,197.39,20.0]
[1738922145431,74.39759667,197.47,197.39,216.49783885]
[1738922146029,156.47247941,197.4,197.39,216.49783885]
[1738922146229,156.47247941,197.4,197.39,169.05956777]
[1738922146425,156.47247941,197.4,197.39,216.49783885]
[1738922146624,131.06427993,197.4,197.39,196.26744106]
[1738922147125,111.22460167,197.4,197.39,196.26744106]
[1738922147522,111.22460167,197.4,197.39,195.14195106]
[1738922147818,111.22460167,197.4,197.39,175.67097553]
[1738922148833,1.94761089,197.4,197.39,217.94007237]
[1738922149013,1.94761089,197.4,197.39,199.46909684]
[1738922149620,1.94761089,197.4,197.39,217.94007237]
[1738922149822,1.44761089,197.4,197.39,217.94007237]
[1738922150640,1.6485,197.5,197.39,217.94007237]
[1738922150837,1.6485,197.5,197.45,18.47097553]
[1738922151024,1.6485,197.5,197.46,18.47097553]
[1738922151337,26.60053885,197.61,197.46,0.75952881]
[1738922151521,18.47097553,197.55,197.48,18.47097553]
[1738922151723,18.84744553,197.49,197.41,18.47097553]
[1738922151923,0.12549,197.47,197.41,18.47097553]
[1738922152221,18.47097553,197.49,197.46,1.0]
[1738922152426,0.37647,197.48,197.46,1.0]
[1738922152613,0.37647,197.48,197.45,1.0]
[1738922152942,18.84744553,197.46,197.43,1.0]
[1738922153127,18.47097553,197.46,197.43,1.0]
[1738922153331,5.0645,197.45,197.43,1.0]
[1738922153514,5.0645,197.45,197.42,24.71723608]
[1738922153720,5.0645,197.45,197.44,4.37276987]
[1738922154035,5.0645,197.45,197.44,3.37276987]
[1738922154922,5.0645,197.45,197.43,1.0]
[1738922155121,5.0645,197.45,197.42,2.0]
[1738922155324,0.25098,197.44,197.42,1.0]
[1738922156631,0.25098,197.44,197.43,1.0]
[1738922156832,0.25098,197.44,197.42,1.0]
[1738922157547,0.12549,197.42,197.4,1.0]
[1738922159548,0.12549,197.42,197.4,2.0]
[1738922159717,0.12549,197.42,197.41,1.0]
[1738922160543,0.12549,197.42,197.4,1.0]
[1738922161427,0.25098,197.42,197.4,1.0]
[1738922161824,0.25098,197.42,197.39,1.03]
[1738922162022,18.72195553,197.42,197.39,1.03]
[1738922162628,23.66226553,197.4,197.39,0.03]
[1738922163454,5.19129,197.4,197.39,0.03]
[1738922164549,5.19129,197.4,197.39,1.03]
[1738922164737,20.10847553,197.46,197.44,1.0]
[1738922165051,20.10847553,197.46,197.42,1.0]
[1738922165052,0.063,197.46,197.45,20.47097553]
[1738922165441,0.063,197.46,197.45,21.23041621]
[1738922167949,0.063,197.46,197.45,178.12316474]
[1738922168139,0.063,197.47,197.46,15.41184853]
[1738922168340,0.063,197.47,197.46,34.64203749]
[1738922169142,0.063,197.47,197.46,172.84203749]
[1738922169344,0.063,197.47,197.46,173.08282406]
[1738922169856,0.063,197.47,197.46,158.67097553]
[1738922170358,0.063,197.47,197.46,172.08282406]
[1738922170554,0.063,197.47,197.46,173.08282406]
[1738922171453,0.063,197.47,197.46,172.08282406]
[1738922171632,0.063,197.47,197.46,173.08282406]
[1738922171837,0.063,197.47,197.46,172.08282406]
[1738922172154,0.063,197.47,197.46,171.08282406]
[1738922172349,0.063,197.47,197.46,157.67097553]
[1738922176051,0.063,197.47,197.46,20.47097553]
[1738922176250,0.063,197.47,197.46,21.23039432]
[1738922176959,0.063,197.47,197.46,2.0]
[1738922178853,0.063,197.47,197.46,20.47097553]
[1738922180444,0.063,197.47,197.46,20.53397553]
[1738922181242,0.063,197.47,197.46,157.73397553]
[1738922185455,0.063,197.47,197.46,2.063]
[1738922195772,18.53397553,197.47,197.46,1.063]
[1738922195979,18.53397553,197.47,197.46,0.063]
[1738922196673,11.89215773,197.47,197.46,0.063]
[1738922197257,16.95615773,197.47,197.46,0.063]
[1738922197562,0.063,197.47,197.46,2.063]
[1738922198358,0.063,197.47,197.46,1.063]
[1738922198560,0.063,197.47,197.46,2.063]
[1738922199285,0.063,197.47,197.46,1.063]
[1738922199579,0.063,197.47,197.46,0.063]
[1738922199982,0.063,197.47,197.46,2.063]
[1738922201376,0.063,197.47,197.46,0.063]
[1738922202374,18.54088538,197.47,197.46,0.063]
[1738922202980,23.60488538,197.47,197.46,0.063]
[1738922204178,5.127,197.47,197.46,1.063]